bitfinex/quotes_BTCUSD_20250508
["timestamp","ask_amount","ask_price","bid_price","bid_amount"]
[1746739921122,0.02443926,103650.0,103640.0,1.51393597]
[1746739921285,0.03408645,103650.0,103640.0,1.18497655]
[1746739921696,0.03408645,103650.0,103640.0,1.04344436]
[1746739921884,0.02443823,103650.0,103640.0,1.04344436]
[1746739922118,0.04373337,103650.0,103640.0,1.04344436]
[1746739922715,0.02443823,103650.0,103640.0,1.06401796]
[1746739922979,0.03408571,103650.0,103640.0,1.06401796]
[1746739924145,0.02443823,103650.0,103640.0,1.40401796]
[1746739924812,0.03408561,103650.0,103640.0,1.06401796]
[1746739925040,0.02443823,103650.0,103640.0,1.06401796]
[1746739925778,0.00514393,103650.0,103640.0,1.06401796]
[1746739926437,0.00514393,103650.0,103640.0,1.46624488]
[1746739926891,0.01479094,103650.0,103640.0,1.46624488]
[1746739927109,0.00514393,103650.0,103640.0,1.46624488]
[1746739927569,6e-05,103660.0,103650.0,0.57644035]
[1746739927772,0.00947029,103660.0,103650.0,1.38089419]
[1746739927974,0.00947029,103660.0,103650.0,1.38692694]
[1746739928426,0.00947029,103660.0,103650.0,1.78692694]
[1746739928649,0.00947029,103660.0,103650.0,1.88759386]
[1746739928865,0.00947029,103660.0,103650.0,1.89059386]
[1746739929770,0.00053966,103660.0,103650.0,1.89059386]
[1746739930649,0.00053966,103660.0,103650.0,1.09470346]
[1746739930867,0.00947029,103660.0,103650.0,1.8991573]
[1746739931558,0.002,103670.0,103660.0,0.56187809]
[1746739931776,0.002,103670.0,103660.0,1.46699885]
[1746739931997,0.002,103670.0,103660.0,1.07080468]
[1746739932483,0.58525389,103690.0,103680.0,0.59512815]
[1746739932706,0.6014977,103690.0,103680.0,0.60477311]
[1746739933170,0.6014977,103690.0,103680.0,0.61441798]
[1746739933395,0.34798381,103690.0,103680.0,1.43593399]
[1746739933623,0.34798381,103690.0,103680.0,0.80457792]
[1746739933624,0.00014381,103690.0,103680.0,0.80457792]
[1746739933858,0.00014381,103690.0,103680.0,1.60903176]
[1746739934084,0.00014381,103690.0,103680.0,0.80457792]
[1746739934313,0.00014381,103690.0,103680.0,1.60903176]
[1746739934506,0.00714381,103690.0,103680.0,1.60903176]
[1746739934755,0.00314381,103690.0,103680.0,1.60903176]
[1746739934983,0.00014381,103690.0,103680.0,1.60903176]
[1746739935437,0.00014381,103690.0,103680.0,1.61003176]
[1746739937289,0.00014381,103690.0,103680.0,1.62323715]
[1746739937495,0.00014381,103690.0,103680.0,0.85004597]
[1746739937704,0.01943141,103690.0,103680.0,0.60710662]
[1746739937941,0.2441146,103690.0,103680.0,0.41420539]
[1746739938148,0.52210102,103690.0,103680.0,0.001]
[1746739938371,0.50087119,103690.0,103680.0,0.001]
[1746739939663,0.0319,103660.0,103650.0,0.40222692]
[1746739939883,0.25182397,103660.0,103650.0,0.59518398]
[1746739940059,0.25182397,103660.0,103650.0,0.99518398]
[1746739940321,0.35249089,103660.0,103650.0,0.80222692]
[1746739940494,0.35249089,103660.0,103650.0,0.4]
[1746739940728,0.0157,103650.0,103640.0,0.62254481]
[1746739940912,0.04464196,103650.0,103640.0,0.62254481]
[1746739941122,0.05428972,103650.0,103640.0,0.63219331]
[1746739941547,0.04464196,103650.0,103640.0,0.62254481]
[1746739941751,0.08128797,103650.0,103640.0,0.60685138]
[1746739941960,0.07164012,103650.0,103640.0,0.62662823]
[1746739942194,0.07164012,103650.0,103640.0,0.63627664]
[1746739942401,0.07164003,103650.0,103640.0,0.63627664]
[1746739942638,0.25495036,103650.0,103640.0,0.40247966]
[1746739942855,0.35561728,103650.0,103640.0,0.00247966]
[1746739943064,0.48453728,103650.0,103640.0,0.00347966]
[1746739943650,0.50073728,103650.0,103640.0,0.00347966]
[1746739943854,0.50073728,103650.0,103640.0,0.19645534]
[1746739944641,0.4910898,103650.0,103640.0,0.19645534]
[1746739945118,0.4910898,103650.0,103640.0,0.00347966]
[1746739946241,0.4910898,103650.0,103640.0,0.00247966]
[1746739946679,0.37181709,103650.0,103640.0,0.59768226]
[1746739946892,0.30761956,103650.0,103640.0,0.19545534]
[1746739947131,0.51987186,103650.0,103640.0,0.59768226]
[1746739947339,0.52187186,103650.0,103640.0,0.59768226]
[1746739948007,0.52187186,103650.0,103640.0,0.19545534]
[1746739948225,0.3289147,103650.0,103640.0,0.19545534]
[1746739948660,0.3192676,103650.0,103640.0,0.20510403]
[1746739948848,0.3192676,103650.0,103640.0,0.19545534]
[1746739948849,0.52187251,103650.0,103640.0,0.19545534]
[1746739949262,0.1905076,103650.0,103640.0,0.19545534]
[1746739949482,0.38346466,103650.0,103640.0,0.19545534]
[1746739949684,0.20015545,103650.0,103640.0,0.59545534]
[1746739950469,0.07054526,103650.0,103640.0,0.60510403]
[1746739950671,0.38346476,103650.0,103640.0,0.19545534]
[1746739950981,0.37381775,103650.0,103640.0,0.00247966]
[1746739951116,0.37381775,103650.0,103640.0,0.19545534]
[1746739951330,0.47381775,103650.0,103640.0,0.19545534]
[1746739951730,0.47381775,103650.0,103640.0,0.00247966]
[1746739953674,1.21604467,103650.0,103640.0,0.00247966]
[1746739953916,1.21604467,103650.0,103620.0,0.002]
[1746739953917,0.24359306,103630.0,103620.0,0.002]
[1746739954140,0.38923821,103630.0,103620.0,0.00214393]
[1746739954382,1.13898513,103630.0,103620.0,0.00214393]
[1746739954609,0.24283406,103610.0,103600.0,0.04593644]
[1746739954865,0.51691921,103610.0,103600.0,0.04593644]
[1746739955074,0.24287504,103590.0,103580.0,0.10866728]
[1746739955284,0.34354196,103590.0,103580.0,0.10866728]
[1746739955497,0.34354196,103590.0,103580.0,0.10881123]
[1746739955945,0.36152203,103590.0,103580.0,0.10881123]
[1746739956366,1.20920774,103590.0,103580.0,0.10881123]
[1746739956553,0.47190196,103590.0,103580.0,0.10881123]
[1746739957136,0.47290196,103590.0,103580.0,0.10881123]
[1746739957358,0.47190196,103590.0,103580.0,0.10881123]
[1746739957555,0.47390196,103590.0,103580.0,0.00214395]
[1746739958223,0.54059874,103590.0,103580.0,0.00214395]
[1746739958350,0.53959874,103590.0,103580.0,0.00214395]
[1746739958766,0.53859874,103590.0,103580.0,0.00214395]
[1746739958997,1.23139874,103590.0,103580.0,0.00214395]
[1746739959168,0.21241605,103570.0,103560.0,0.07906758]
[1746739959377,0.69228297,103570.0,103560.0,0.07906758]
[1746739959569,0.71696874,103570.0,103560.0,0.002]
[1746739959784,1.79976874,103570.0,103560.0,0.002]
[1746739959982,1.74976874,103570.0,103560.0,0.002]
[1746739960496,0.21245708,103550.0,103540.0,0.002]
[1746739960674,0.21245708,103550.0,103540.0,0.00214403]
[1746739960675,0.472564,103550.0,103540.0,0.00214403]
[1746739960876,0.53913446,103550.0,103540.0,0.00214403]
[1746739961091,1.57193446,103550.0,103540.0,0.00214403]
[1746739961319,1.58193446,103550.0,103540.0,0.00214403]
[1746739961519,0.24369812,103530.0,103520.0,0.07906758]
[1746739961792,0.34450873,103530.0,103520.0,0.002]
[1746739961999,0.39827739,103530.0,103520.0,0.002]
[1746739962203,0.34450873,103530.0,103520.0,0.002]
[1746739963277,0.34450873,103530.0,103520.0,0.003]
[1746739964240,0.00014369,103530.0,103520.0,0.76907223]
[1746739964489,0.00114369,103530.0,103520.0,0.76907223]
[1746739964705,0.00114369,103530.0,103520.0,1.40457474]
[1746739965050,0.00114369,103530.0,103520.0,0.86068066]
[1746739966265,0.00114369,103530.0,103520.0,1.26068066]
[1746739966452,0.31430873,103530.0,103520.0,0.403]
[1746739966658,0.31430873,103530.0,103520.0,0.19619938]
[1746739967519,0.31430873,103530.0,103520.0,0.17619938]
[1746739967863,0.31277382,103530.0,103520.0,0.17619938]
[1746739968768,0.31277382,103530.0,103510.0,0.74677226]
[1746739968769,0.01931862,103520.0,103510.0,0.74677226]
[1746739968993,0.30311526,103530.0,103520.0,0.19319938]
[1746739968994,0.23815715,103530.0,103520.0,0.19319938]
[1746739969222,0.33882407,103530.0,103520.0,0.19319938]
[1746739969451,0.11998432,103530.0,103520.0,0.19319938]
[1746739969947,0.31316504,103530.0,103520.0,0.19319938]
[1746739970598,0.32826504,103530.0,103520.0,0.19319938]
[1746739970769,0.27597682,103530.0,103520.0,0.19319938]
[1746739971013,0.28563566,103530.0,103520.0,0.19319938]
[1746739971438,0.00502818,103540.0,103530.0,0.24635658]
[1746739971721,0.002,103550.0,103540.0,0.29458609]
[1746739971926,0.002,103550.0,103540.0,1.38711467]
[1746739972615,0.002,103550.0,103540.0,1.32920467]
[1746739973107,0.002,103550.0,103540.0,1.72920467]
[1746739973561,0.002,103550.0,103540.0,1.73520467]
[1746739974460,0.002,103550.0,103540.0,1.73920467]
[1746739975368,0.002,103550.0,103540.0,1.74524177]
[1746739975592,0.002,103550.0,103540.0,1.20134769]
[1746739975816,0.002,103550.0,103540.0,1.74524177]
[1746739976012,0.002,103550.0,103540.0,1.66817419]
[1746739976552,0.002,103570.0,103560.0,0.57663318]
[1746739976776,0.002,103570.0,103560.0,1.12052726]
[1746739977015,0.002,103570.0,103560.0,1.76508826]
[1746739977214,0.002,103570.0,103560.0,1.79748826]
[1746739977474,0.002,103570.0,103560.0,2.20352424]
[1746739977729,0.002,103590.0,103580.0,0.78048439]
[1746739977953,0.00214401,103590.0,103580.0,0.78048439]
[1746739978429,0.00214401,103590.0,103580.0,1.12048439]
[1746739978624,0.00214401,103590.0,103580.0,1.65355131]
[1746739979116,0.002,103610.0,103600.0,0.04349724]
[1746739979344,0.002,103610.0,103600.0,1.3262657]
[1746739979572,0.002,103610.0,103600.0,0.23654743]
[1746739979808,0.002,103610.0,103600.0,1.32433559]
[1746739980039,0.003,103630.0,103620.0,0.78039867]
[1746739980267,0.00314393,103630.0,103620.0,0.78035867]
[1746739981907,0.4498,103650.0,103640.0,0.23646176]
[1746739982145,0.002,103670.0,103650.0,0.35454085]
[1746739982380,0.0024796,103670.0,103660.0,0.86702615]
[1746739982640,0.0024796,103670.0,103660.0,1.26509737]
[1746739983097,0.0024796,103670.0,103660.0,1.29689737]
[1746739983344,0.19294821,103700.0,103690.0,0.78023326]
[1746739983345,0.01928528,103700.0,103690.0,0.78023326]
[1746739983564,0.21422079,103710.0,103700.0,0.20250713]
[1746739983787,0.21431334,103710.0,103700.0,0.74640121]
[1746739984014,0.21431334,103710.0,103700.0,0.77249899]
[1746739984239,0.21431334,103710.0,103700.0,1.17249899]
[1746739984240,0.20467135,103710.0,103700.0,1.17249899]
[1746739984483,0.19467135,103710.0,103700.0,1.182142]
[1746739984674,9.255e-05,103710.0,103700.0,1.20142737]
[1746739984934,0.03865957,103710.0,103700.0,1.19178482]
[1746739985190,0.03865957,103710.0,103700.0,1.22977421]
[1746739985411,0.0290173,103710.0,103700.0,1.22013166]
[1746739985633,0.03865938,103710.0,103700.0,1.22977421]
[1746739985860,0.03865938,103710.0,103700.0,1.20242737]
[1746739986080,0.00609255,103710.0,103700.0,1.20142737]
[1746739986302,0.00609255,103710.0,103700.0,1.31763514]
[1746739986523,0.00609255,103710.0,103700.0,1.68598198]
[1746739986742,0.00609255,103710.0,103700.0,1.69328734]
[1746739986967,0.01163966,103730.0,103720.0,0.76564382]
[1746739987223,0.02127942,103730.0,103720.0,0.76564382]
[1746739987448,0.002,103730.0,103720.0,0.95446678]
[1746739987874,0.002,103730.0,103720.0,1.35446678]
[1746739988337,0.12194708,103730.0,103720.0,0.4]
[1746739988582,0.23466799,103720.0,103710.0,0.04390745]
[1746739988803,0.80233491,103720.0,103710.0,0.04390745]
[1746739989292,0.80233491,103720.0,103700.0,0.001]
[1746739989293,1.27608751,103710.0,103700.0,0.001]
[1746739989513,0.24297023,103690.0,103680.0,0.002]
[1746739989745,0.00964627,103660.0,103650.0,0.08681804]
[1746739989977,0.01929448,103650.0,103640.0,0.19497568]
[1746739990196,0.01929448,103650.0,103640.0,0.22632995]
[1746739990413,0.31984986,103680.0,103670.0,0.22185715]
[1746739990414,0.03857818,103680.0,103670.0,0.22185715]
[1746739990634,0.03857818,103680.0,103670.0,0.20256583]
[1746739990850,0.03857818,103680.0,103670.0,0.21221163]
[1746739991086,0.04822324,103680.0,103670.0,0.21221163]
[1746739991546,0.03957902,103680.0,103670.0,0.21221172]
[1746739991768,0.03957902,103680.0,103670.0,0.22185743]
[1746739991769,0.03957892,103680.0,103670.0,0.22185743]
[1746739992541,0.03957892,103680.0,103670.0,0.62185743]
[1746739992865,0.03957892,103680.0,103670.0,0.61221172]
[1746739993092,0.22283565,103680.0,103670.0,0.59491984]
[1746739993259,0.33025798,103680.0,103670.0,0.002]
[1746739993462,0.34655798,103680.0,103670.0,0.002]
[1746739993698,0.10166692,103680.0,103670.0,0.22385697]
[1746739993939,0.001,103680.0,103670.0,1.3621204]
[1746739994169,0.001,103680.0,103670.0,1.37666125]
[1746739994409,0.02028872,103680.0,103670.0,0.60456583]
[1746739994627,0.0299335,103680.0,103670.0,0.61421172]
[1746739994847,0.0299335,103680.0,103670.0,0.63350295]
[1746739995077,0.0299335,103680.0,103660.0,0.20258337]
[1746739995078,0.02893656,103670.0,103660.0,0.1929371]
[1746739995295,0.01929076,103670.0,103660.0,0.2218771]
[1746739995510,0.2218564,103670.0,103660.0,0.5929371]
[1746739995753,0.22189893,103650.0,103640.0,0.19545528]
[1746739995959,0.22189893,103650.0,103640.0,0.20510397]
[1746739995960,0.03858953,103650.0,103640.0,0.20510397]
[1746739996190,0.03858963,103650.0,103640.0,0.21475247]
[1746739996394,0.02894187,103650.0,103640.0,0.19545528]
[1746739996600,0.31291921,103650.0,103640.0,0.0024796]
[1746739996810,0.32891921,103650.0,103640.0,0.19945528]
[1746739997472,0.32891921,103650.0,103640.0,0.25736528]
[1746739997707,0.32891921,103650.0,103640.0,0.0024796]
[1746739997930,0.32891921,103650.0,103640.0,0.0074796]
[1746739998366,0.32891921,103650.0,103640.0,0.0024796]
[1746739998802,0.32891921,103650.0,103620.0,0.002]
[1746739998803,0.60229306,103630.0,103620.0,0.002]
[1746739999040,1.58295458,103630.0,103620.0,0.00209255]
[1746739999272,0.21233406,103610.0,103600.0,0.002]
[1746739999537,1.7136451,103610.0,103600.0,0.00209256]
[1746739999755,1.86431202,103610.0,103600.0,0.00209256]
[1746739999984,0.15256942,103610.0,103600.0,0.00209256]
[1746740000210,0.78692144,103610.0,103600.0,0.00209256]
[1746740000641,0.78027005,103610.0,103600.0,0.00209256]
[1746740000864,0.78561848,103610.0,103600.0,0.00209256]
[1746740001946,0.78661848,103610.0,103600.0,0.00209256]
[1746740002358,0.78561848,103610.0,103600.0,0.00209256]
[1746740002588,0.79064666,103610.0,103600.0,0.00209256]
[1746740002809,0.79164666,103610.0,103600.0,0.00209256]
[1746740003020,0.00965269,103590.0,103580.0,0.61676478]
[1746740003228,0.01930547,103590.0,103580.0,0.62656308]
[1746740003442,0.00965269,103590.0,103580.0,0.6362168]
[1746740003869,0.21237504,103590.0,103580.0,0.58306034]
[1746740004115,0.21237504,103590.0,103580.0,0.00014393]
[1746740004116,0.31304196,103590.0,103580.0,0.00014393]
[1746740004316,0.32844196,103590.0,103580.0,0.00114393]
[1746740004531,0.34384196,103590.0,103580.0,0.00114393]
[1746740007626,0.34384196,103590.0,103580.0,0.00014393]
[1746740007838,0.34584196,103590.0,103580.0,0.00014393]
[1746740008075,0.12197286,103590.0,103580.0,0.21253947]
[1746740008306,0.60538583,103590.0,103580.0,0.19323139]
[1746740008538,0.60538583,103590.0,103580.0,0.00014393]
[1746740008539,0.77914899,103590.0,103580.0,0.00014393]
[1746740008759,0.85996332,103590.0,103580.0,0.00014393]
[1746740009174,0.80964899,103590.0,103580.0,0.00014393]
[1746740010427,0.21241605,103570.0,103560.0,0.002]
[1746740010651,0.34558297,103570.0,103560.0,0.00214401]
[1746740012084,0.74558297,103570.0,103560.0,0.00214401]
[1746740012295,0.74858297,103570.0,103560.0,0.00214401]
[1746740012500,0.83834636,103570.0,103560.0,0.00214401]
[1746740012934,1.84557637,103570.0,103560.0,0.00214401]
[1746740013142,0.21245708,103550.0,103540.0,0.002]
[1746740013347,0.471504,103550.0,103540.0,0.002]
[1746740013544,0.53796847,103550.0,103540.0,0.002]
[1746740013760,1.4681309,103550.0,103540.0,0.002]
[1746740014189,1.49818383,103550.0,103540.0,0.002]
[1746740014670,1.49418383,103550.0,103540.0,0.002]
[1746740014823,1.49418383,103550.0,103520.0,0.002]
[1746740014824,1.14266055,103530.0,103520.0,0.002]
[1746740015049,1.72351439,103530.0,103520.0,0.002]
[1746740015474,1.14335196,103530.0,103520.0,0.002]
[1746740015924,0.34772,103530.0,103520.0,0.238719]
[1746740016127,0.34772,103530.0,103520.0,1.18976165]
[1746740016780,0.34972,103530.0,103520.0,1.58976165]
[1746740017447,0.34772,103530.0,103520.0,1.39756227]
[1746740017645,0.34772,103530.0,103520.0,1.01059922]
[1746740017857,0.34772,103530.0,103520.0,1.01359922]
[1746740018067,0.34872,103530.0,103520.0,1.57536165]
[1746740018695,0.34872,103530.0,103520.0,0.99519922]
[1746740018898,0.34872,103530.0,103520.0,1.56336165]
[1746740019184,0.31751318,103530.0,103520.0,1.55736165]
[1746740019390,0.31751318,103530.0,103520.0,1.56036165]
[1746740020331,0.31851318,103530.0,103520.0,1.56936165]
[1746740021034,0.32817146,103530.0,103520.0,1.56936165]
[1746740021241,0.6477786,103530.0,103520.0,0.01248022]
[1746740021449,1.05910931,103530.0,103520.0,0.01248022]
[1746740021867,1.05810931,103530.0,103520.0,0.00348022]
[1746740022327,1.06313749,103530.0,103520.0,0.00748022]
[1746740022746,1.06313749,103530.0,103520.0,0.00448022]
[1746740023387,1.06313749,103530.0,103520.0,0.00048022]
[1746740023593,1.06513749,103530.0,103520.0,0.00048022]
[1746740023808,1.06513749,103530.0,103520.0,0.00148022]
[1746740024271,1.07513749,103530.0,103520.0,0.00148022]
[1746740027940,1.02010678,103530.0,103520.0,0.00148022]
[1746740028604,0.67010678,103530.0,103520.0,0.00148022]
[1746740028816,0.76286678,103530.0,103520.0,0.00148022]
[1746740029028,0.0096594,103520.0,103510.0,0.20166153]
[1746740029264,0.33250429,103520.0,103510.0,0.19214432]
[1746740029478,0.32284498,103520.0,103510.0,0.20692792]
[1746740029685,0.32284498,103520.0,103510.0,0.01492729]
[1746740029901,0.32284498,103520.0,103510.0,0.21780623]
[1746740030138,0.32284498,103520.0,103510.0,0.20814533]
[1746740030351,0.32284498,103520.0,103510.0,0.01892729]
[1746740030352,0.31318558,103520.0,103510.0,0.01892729]
[1746740030563,0.30352608,103520.0,103510.0,0.0101845]
[1746740031007,0.30352608,103520.0,103510.0,0.00414369]
[1746740031201,0.30352608,103520.0,103510.0,0.00014369]
[1746740031405,0.30352608,103520.0,103510.0,0.00614369]
[1746740031829,0.30352608,103520.0,103510.0,0.01218484]
[1746740032526,0.10066692,103520.0,103510.0,0.20540288]
[1746740032749,0.47647677,103530.0,103520.0,0.22217815]
[1746740032952,0.56748494,103530.0,103520.0,0.22217815]
[1746740033165,0.57714369,103530.0,103520.0,0.22217815]
[1746740033379,0.55782647,103530.0,103520.0,0.2282193]
[1746740033603,0.5771436,103530.0,103520.0,0.22821949]
[1746740033837,0.58680244,103530.0,103520.0,0.23787889]
[1746740034044,0.56748485,103530.0,103520.0,0.25929776]
[1746740034257,0.57714332,103530.0,103520.0,0.25929776]
[1746740034486,0.56748485,103530.0,103520.0,0.27383861]
[1746740034665,0.42320828,103530.0,103520.0,0.27383861]
[1746740034877,0.43286647,103530.0,103520.0,0.27383861]
[1746740035538,0.44252475,103530.0,103520.0,0.25929776]
[1746740035759,0.45218341,103530.0,103520.0,0.25929776]
[1746740035939,0.44252485,103530.0,103520.0,0.25929776]
[1746740036154,0.44252485,103530.0,103520.0,0.2505382]
[1746740037015,0.44252485,103530.0,103520.0,0.24449705]
[1746740037375,0.65502317,103530.0,103520.0,0.19619938]
[1746740037575,0.6357066,103530.0,103520.0,0.19619938]
[1746740037814,0.6357066,103530.0,103520.0,0.20585916]
[1746740038016,0.6357066,103530.0,103520.0,0.19619938]
[1746740038225,1.17884105,103530.0,103520.0,0.003]
[1746740038427,1.76015769,103530.0,103520.0,0.003]
[1746740038672,1.75015769,103530.0,103520.0,0.003]
[1746740038860,0.46950364,103530.0,103520.0,0.003]
[1746740039088,0.79694339,103530.0,103520.0,0.003]
[1746740039237,0.78728473,103530.0,103520.0,0.003]
[1746740039600,0.22217778,103520.0,103510.0,0.20211623]
[1746740039815,0.22217778,103520.0,103510.0,0.00014369]
[1746740039816,0.40031732,103520.0,103510.0,0.00014369]
[1746740040025,0.77101732,103520.0,103510.0,0.00014369]
[1746740040268,0.77101732,103520.0,103500.0,0.002]
[1746740040269,1.40242378,103520.0,103500.0,0.002]
[1746740040468,0.65370042,103510.0,103500.0,0.002]
[1746740040676,0.68067818,103510.0,103500.0,0.002]
[1746740042213,0.69067818,103510.0,103500.0,0.002]
[1746740042429,1.33568398,103510.0,103500.0,0.002]
[1746740042680,1.35237455,103510.0,103500.0,0.002]
[1746740042872,0.55258026,103490.0,103480.0,0.002]
[1746740043095,0.83668494,103490.0,103480.0,0.0021441]
[1746740044216,0.93735186,103490.0,103480.0,0.0031441]
[1746740044433,0.83668494,103490.0,103480.0,0.01193164]
[1746740044653,0.83668494,103490.0,103480.0,0.01493164]
[1746740045330,0.83668494,103490.0,103480.0,0.0061441]
[1746740045610,0.84656494,103490.0,103480.0,0.0061441]
[1746740046062,0.37232494,103490.0,103480.0,0.0061441]
[1746740046275,0.4740877,103490.0,103480.0,0.19941816]
[1746740046487,0.4740877,103490.0,103480.0,0.0051441]
[1746740046706,0.4644254,103490.0,103480.0,0.0021441]
[1746740046922,0.4644254,103490.0,103480.0,0.19541816]
[1746740046923,0.4664254,103490.0,103480.0,0.19541816]
[1746740047138,0.4654254,103490.0,103480.0,0.19541816]
[1746740047356,0.4654254,103490.0,103480.0,0.19741816]
[1746740047574,0.4644254,103490.0,103480.0,0.19741816]
[1746740048008,0.4644254,103490.0,103480.0,0.0081441]
[1746740049941,0.91219322,103490.0,103480.0,0.0081441]
[1746740050153,0.91199322,103490.0,103480.0,0.0081441]
[1746740050601,1.26007322,103490.0,103480.0,0.0041441]
[1746740050813,0.8122654,103490.0,103480.0,0.19541816]
[1746740051013,0.8122654,103490.0,103480.0,0.0021441]
[1746740051014,0.8162654,103490.0,103480.0,0.0021441]
[1746740051430,0.8132654,103490.0,103480.0,0.0021441]
[1746740051657,1.29891722,103490.0,103480.0,0.0021441]
[1746740051866,1.28891722,103490.0,103480.0,0.0021441]
[1746740052297,1.1871854,103490.0,103480.0,0.0021441]
[1746740052514,0.00966473,103460.0,103450.0,0.21077292]
[1746740052731,0.12966185,103460.0,103450.0,0.23991508]
[1746740053002,0.12966185,103460.0,103450.0,0.2205832]
[1746740053210,0.11033165,103460.0,103450.0,0.23024923]
[1746740053416,0.13932695,103460.0,103450.0,0.23991508]
[1746740053619,0.3229741,103460.0,103450.0,0.19347312]
[1746740053842,0.3229741,103460.0,103450.0,0.21280717]
[1746740054055,0.01932693,103480.0,103470.0,0.20294221]
[1746740054276,0.44669105,103480.0,103470.0,0.20294221]
[1746740054486,0.43702791,103480.0,103470.0,0.20294221]
[1746740054688,0.43702791,103480.0,103470.0,0.19327758]
[1746740054865,0.43702791,103480.0,103470.0,0.21260675]
[1746740055308,0.31326791,103480.0,103470.0,0.19327758]
[1746740055526,0.23197202,103460.0,103450.0,0.55580698]
[1746740055734,0.14032742,103460.0,103450.0,0.56180698]
[1746740055958,0.14999299,103460.0,103450.0,0.56847301]
[1746740056180,0.14899299,103460.0,103450.0,0.56247301]
[1746740056403,0.32297467,103460.0,103450.0,0.19347426]
[1746740056634,0.32297467,103460.0,103450.0,0.20314067]
[1746740056856,0.32297467,103460.0,103450.0,0.21580689]
[1746740057287,0.30464391,103460.0,103450.0,0.00914415]
[1746740062372,0.10166692,103460.0,103450.0,0.23147265]
[1746740062603,0.10166692,103460.0,103450.0,0.26357265]
[1746740062833,0.10166692,103460.0,103450.0,0.23147265]
[1746740063056,0.10166692,103460.0,103450.0,0.24113868]
[1746740063057,0.13066176,103460.0,103450.0,0.24113868]
[1746740063318,0.12099656,103460.0,103450.0,0.23147302]
[1746740063531,0.12099656,103460.0,103450.0,0.2314732]
[1746740063919,0.33363828,103460.0,103450.0,0.01881065]
[1746740064095,0.32397421,103460.0,103450.0,0.01881065]
[1746740065297,0.30464391,103460.0,103450.0,0.00914415]
[1746740065717,0.42780391,103460.0,103450.0,0.00914415]
[1746740065889,0.30464391,103460.0,103450.0,0.00914415]
[1746740066122,0.42776391,103460.0,103450.0,0.00914415]
[1746740067947,0.45936391,103460.0,103450.0,0.00914415]
[1746740068179,0.44396391,103460.0,103450.0,0.00914415]
[1746740068754,0.42776391,103460.0,103450.0,0.00914415]
[1746740069690,0.77592391,103460.0,103450.0,0.00914415]
[1746740070908,0.65280391,103460.0,103450.0,0.21214076]
[1746740071132,0.60166279,103460.0,103450.0,0.2314732]
[1746740071588,0.79497421,103460.0,103450.0,0.2314732]
[1746740072025,0.79304121,103460.0,103450.0,0.22180707]
[1746740072259,0.46722422,103460.0,103450.0,0.77667558]
[1746740072490,0.34916,103460.0,103450.0,1.57278228]
[1746740072924,0.34916,103460.0,103450.0,1.57882522]
[1746740073593,0.34916,103460.0,103450.0,1.58764657]
[1746740074078,0.34916,103460.0,103450.0,0.64244409]
[1746740074321,0.34916,103460.0,103450.0,1.18764657]
[1746740074545,0.001,103460.0,103450.0,1.17882522]
[1746740074798,0.001,103460.0,103450.0,1.17278228]
[1746740075697,0.1209974,103460.0,103450.0,0.00914415]
[1746740075916,0.83102199,103460.0,103450.0,0.00914415]
[1746740076140,0.41849266,103460.0,103450.0,0.00914415]
[1746740076362,0.46398508,103460.0,103450.0,0.00914415]
[1746740076797,0.46398508,103460.0,103450.0,0.00614415]
[1746740077263,0.46498508,103460.0,103450.0,0.55134663]
[1746740077451,0.43786882,103460.0,103450.0,0.00614415]
[1746740077682,0.43686882,103460.0,103450.0,0.00014415]
[1746740078078,0.43686882,103460.0,103450.0,0.00114415]
[1746740078448,0.43586882,103460.0,103450.0,0.00014415]
[1746740078700,0.43586882,103460.0,103450.0,0.00114415]
[1746740078924,0.43586882,103460.0,103450.0,0.00514415]
[1746740079371,0.43586882,103460.0,103450.0,0.00614415]
[1746740080024,0.20299652,103450.0,103440.0,0.6987527]
[1746740080238,0.20299652,103450.0,103440.0,0.34]
[1746740080239,0.30366344,103450.0,103440.0,0.34]
[1746740080682,0.21268293,103440.0,103430.0,1.07856997]
[1746740080928,0.21268293,103440.0,103420.0,0.75992699]
[1746740080929,0.02900436,103430.0,103420.0,0.75992699]
[1746740081139,0.12967128,103430.0,103420.0,0.75992699]
[1746740081345,0.12967128,103430.0,103420.0,0.23406209]
[1746740081536,0.12967128,103430.0,103420.0,1.11926457]
[1746740081746,0.12967128,103430.0,103420.0,1.12893322]
[1746740082173,0.120003,103430.0,103420.0,1.12893322]
[1746740082423,0.12000244,103430.0,103420.0,1.12893322]
[1746740082610,0.12967053,103430.0,103420.0,1.13493322]
[1746740083931,0.13067053,103430.0,103420.0,1.14293322]
[1746740084137,0.12100244,103430.0,103420.0,1.14293322]
[1746740084350,0.13067053,103430.0,103420.0,1.14293322]
[1746740084581,0.12100244,103430.0,103420.0,1.14293322]
[1746740084804,0.12100235,103430.0,103420.0,0.59773074]
[1746740085058,0.12100235,103430.0,103420.0,1.14293322]
[1746740087193,0.13067035,103430.0,103420.0,1.14293322]
[1746740087417,0.12100235,103430.0,103420.0,1.54293322]
[1746740087855,0.11133454,103430.0,103420.0,1.40165787]
[1746740088074,0.12100235,103430.0,103420.0,1.40165787]
[1746740088287,0.11133454,103430.0,103420.0,1.40165787]
[1746740088498,0.12100226,103430.0,103420.0,1.40165787]
[1746740088969,0.12100226,103430.0,103420.0,1.00165787]
[1746740090035,0.11133454,103430.0,103420.0,1.00165787]
[1746740091104,0.11133445,103430.0,103420.0,1.00165787]
[1746740092636,0.14033815,103430.0,103420.0,1.00165787]
[1746740092859,0.14033806,103430.0,103420.0,1.00165787]
[1746740094698,0.12100207,103430.0,103420.0,1.00165787]
[1746740094898,0.14033788,103430.0,103420.0,1.00165787]
[1746740095742,0.15000597,103430.0,103420.0,1.00165787]
[1746740095948,0.15000597,103430.0,103420.0,0.59773074]
[1746740096179,0.15000597,103430.0,103420.0,1.00165787]
[1746740096715,0.14033778,103430.0,103420.0,1.00165787]
[1746740097113,0.15000578,103430.0,103420.0,1.00165787]
[1746740097602,0.14033825,103430.0,103420.0,1.00165787]
[1746740097994,0.13067025,103430.0,103420.0,1.00165787]
[1746740099413,0.14033834,103430.0,103420.0,1.00165787]
[1746740099595,0.14033834,103430.0,103420.0,0.99198922]
[1746740099834,0.13067025,103430.0,103420.0,1.00165787]
[1746740100745,0.15000671,103430.0,103420.0,1.00165787]
[1746740101404,0.15000671,103430.0,103420.0,0.99198922]
[1746740101645,0.31437087,103430.0,103420.0,0.016]
[1746740101868,0.34667087,103430.0,103420.0,0.016]
[1746740102097,0.50024415,103430.0,103420.0,0.016]
[1746740102316,0.34667087,103430.0,103420.0,0.016]
[1746740102537,0.46771087,103430.0,103420.0,0.016]
[1746740103191,0.46671087,103430.0,103420.0,0.008]
[1746740103411,0.46771087,103430.0,103420.0,0.015]
[1746740103869,0.46671087,103430.0,103420.0,0.008]
[1746740104451,0.46671087,103430.0,103420.0,0.005]